[Event "SixDays Budapest May IM 2023"]
[Site "Budapest"]
[Date "2023.05.27"]
[Round "1.1"]
[White "Semprun Martinez, Fernando"]
[Black "Horvath, David"]
[Result "1/2-1/2"]
[Annotator "TA"]
[ECO "C11"]
[WhiteElo "2125"]
[BlackElo "2362"]
[PlyCount "42"]
[EventDate "2023.05.25"]
[EventType "tourn"]
[EventCountry "HUN"]
[SourceTitle "playchess.com"]
[Source "ChessBase"]
[SourceQuality "1"]
[TimeControl "5400+30"]

{[%evp 16,42,17,6,14,15,35,22,31,29,30,31,28,32,33,28,37,23,39,17,14,7,24,3,59,55,87,80,73]} 1. e4 e6 2. d4 d5 3. Nc3 Nf6 4. e5 Nfd7 5. f4 c5 6. Nf3 Nc6 7. Be3 Be7 8. Qd2 O-O {8...a6 is more advanced technology.} 9. dxc5 Bxc5 {C11: French: Classical System: 4 e5 and 4 Bg5 dxe4.} 10. O-O-O Qb6 11. Nd4 Nxd4 {The position is equal.} 12. Bxd4 Bxd4 13. Qxd4 Qxd4 14. Rxd4 a6 15. h4 b6 16. h5 h6 {[#]} 17. Rd2 $146 ({Predecessor:} 17. b3 Ra7 18. Kb2 Rc7 19. Rd2 Bb7 20. Bd3 Nc5 21. Ne2 b5 22. Nd4 Ne4 23. Bxe4 dxe4 {½-½ Kurnosov,I (2657)-Le,Q (2712) Wch Rapid Khanty-Mansiysk 2013 (6)}) 17... Ra7 18. Bd3 Rc7 19. Re1 Bb7 ({Black should try} 19... b5 $11) 20. Ne2 $14 Rfc8 21. Nd4 Nc5 {Weighted Error Value: White=0.07 (flawless) /Black=0.17 (very precise)} 1/2-1/2

[Event "SixDays Budapest May IM 2023"]
[Site "Budapest"]
[Date "2023.05.27"]
[Round "1.2"]
[White "Tancsa, Tamas"]
[Black "Nemeth, Zalan"]
[Result "1/2-1/2"]
[Annotator "TA"]
[ECO "B31"]
[WhiteElo "2188"]
[BlackElo "2289"]
[PlyCount "58"]
[EventDate "2023.05.25"]
[EventType "tourn"]
[EventCountry "HUN"]
[SourceTitle "playchess.com"]
[Source "ChessBase"]
[SourceQuality "1"]
[TimeControl "5400+30"]

{[%evp 14,58,38,22,37,36,29,30,39,12,10,5,7,0,0,0,0,0,0,0,0,0,0,0,0,-6,0,0,0,-10,-15,-10,-20,-16,0,0,0,0,0,0,0,-13,0,0,0,-41,-14]} 1. e4 {[%emt 0:00:46]} c5 {[%emt 0:00:56]} 2. Nf3 {[%emt 0:00:05]} Nc6 {[%emt 0:00:14]} 3. Bb5 {[%emt 0:00:03]} g6 {[%emt 0:00:10]} 4. O-O {[%emt 0:00:10]} Bg7 {[%emt 0:00:04]} 5. Re1 {[%emt 0:00:06]} e5 {[%emt 0:00:03]} 6. Bxc6 {[%emt 0:01:05]} dxc6 {[%emt 0:02:39]} 7. d3 {[%emt 0:00:28]} Ne7 {[%emt 0:01:03]} 8. Nbd2 {[%emt 0:04:47]} Qc7 {[%emt 0:04:01] B31: Sicilian: 2...Nc6 3 Bb5 g6.} 9. Nc4 {[%emt 0:02:13]} O-O {[%emt 0:06:13][%cal Be8g8,Bg8g7,Bg7f7][%mdl 32]} 10. Be3 {[%emt 0:00:13]} b6 {[%emt 0:00:05] White has an edge.} 11. Qd2 {[%emt 0:02:00] [#]} Bg4 $146 {[%emt 0:06:15]} ({Predecessor:} 11... f6 12. Qc3 Be6 13. a3 Kh8 14. b4 cxb4 15. axb4 Ng8 16. Ra6 Bh6 17. Rea1 Bxe3 18. fxe3 {½-½ Chevallier,D (2260)-Hartereau,P (2170) Paris-ch op 1991 (2)}) 12. Nh4 {[%emt 0:04:23]} Be6 {[%emt 0:00:39]} 13. Bh6 {[%emt 0:00:20]} Bxc4 {[%emt 0:00:35]} 14. Bxg7 {[%emt 0:00:11]} Kxg7 {[%emt 0:00:08]} 15. dxc4 {[%emt 0:00:53]} Rad8 {[%emt 0:01:14]} 16. Qe2 {[%emt 0:02:01]} Rd6 {[%emt 0:13:10]} 17. Rad1 {[%emt 0:03:36]} Rfd8 {[%emt 0:00:18]} 18. Nf3 {[%emt 0:00:01]} f6 {[%emt 0:02:12]} 19. Qf1 {[%emt 0:03:49]} Kf7 {[%emt 0:14:02]} 20. Rxd6 {[%emt 0:02:55]} Qxd6 {[%emt 0:03:01]} 21. Re3 {[%emt 0:00:06]} Qd1 {[%emt 0:00:37]} 22. Qxd1 {[%emt 0:01:15]} Rxd1+ {[%emt 0:00:02]} 23. Re1 {[%emt 0:00:11]} Rxe1+ {[%emt 0:03:42]} 24. Nxe1 $11 {[%emt 0:00:09][%mdl 4096] Endgame KN-KN} Nc8 {[%emt 0:00:06]} 25. Nf3 {[%emt 0:00:51]} Nd6 {[%emt 0:00:03][%csl LRc4,LRe4]} 26. Nd2 {[%emt 0:00:05]} f5 {[%emt 0:03:46]} 27. f3 {[%emt 0:01:11]} Ne8 {[%emt 0:02:34]} 28. Kf2 {[%emt 0:00:53]} f4 {[%emt 0:00:24]} 29. c3 {[%emt 0:02:53]} Nd6 {[%emt 0:02:29] Weighted Error Value: White=0.05 (flawless) /Black=0.02 (flawless)} 1/2-1/2

[Event "SixDays Budapest May IM 2023"]
[Site "Budapest"]
[Date "2023.05.27"]
[Round "1.3"]
[White "To, Nhat Minh"]
[Black "Ojas Kulkarni"]
[Result "1/2-1/2"]
[Annotator "TA"]
[ECO "B40"]
[WhiteElo "2359"]
[BlackElo "2230"]
[PlyCount "31"]
[EventDate "2023.05.25"]
[EventType "tourn"]
[EventCountry "HUN"]
[SourceTitle "playchess.com"]
[Source "ChessBase"]
[SourceQuality "1"]
[TimeControl "5400+30"]

{[%evp 12,18,33,25,38,37,36,3,24]} 1. e4 {[%emt 0:00:32]} c5 {[%emt 0:00:39]} 2. Nf3 {[%emt 0:00:03]} e6 {[%emt 0:00:06]} 3. b3 {[%emt 0:00:07]} d6 {[%emt 0:03:47]} 4. d4 {[%emt 0:00:08]} cxd4 {[%emt 0:02:00]} 5. Nxd4 {[%emt 0:00:05]} Nf6 {[%emt 0:00:14]} 6. Bd3 {[%emt 0:00:05]} a6 {[%emt 0:02:26]} 7. O-O {[%emt 0:00:19]} b6 {[%emt 0:04:00] B42: Sicilian: Kan Variation: 5 Bd3.} 8. Bb2 {[%emt 0:02:41]} Bb7 {[%emt 0:00:20]} 9. Nd2 {[%emt 0:00:23]} Nbd7 {[%emt 0:02:51] [#]   Weighted Error Value: White=0.12 (very precise) /Black=0.06 (flawless)} {Predecessor:} 10. Qe2 $146 e5 11. Nf5 g6 12. Ne3 Bh6 13. b4 O-O 14. c4 Re8 15. Nd5 Nh5 16. g3 {0-1 Schwabeneder,F (2451)-Markowski,T (2551) BL2-Ost 1819 2018 (2.1)} 1/2-1/2

[Event "SixDays Budapest May IM 2023"]
[Site "Budapest"]
[Date "2023.05.27"]
[Round "1.4"]
[White "Arvind Ramnath Iyer"]
[Black "Manu David Suthandram R"]
[Result "0-1"]
[Annotator "TA"]
[ECO "B32"]
[WhiteElo "1883"]
[BlackElo "2332"]
[PlyCount "62"]
[EventDate "2023.05.25"]
[EventType "tourn"]
[EventCountry "HUN"]
[SourceTitle "playchess.com"]
[Source "ChessBase"]
[SourceQuality "1"]
[TimeControl "5400+30"]

{[%evp 23,62,44,71,20,15,16,52,30,27,-3,-6,-11,-5,-7,-10,-8,44,0,0,-26,-2,-21,-20,-29,-27,-19,-20,-29,0,0,0,-106,-83,-806,-208,-197,-185,-445,-93,-29990,-29991]} 1. e4 {[%emt 0:00:38]} c5 {[%emt 0:01:05]} 2. Nf3 {[%emt 0:00:11][%cal Bg1f3,Bf3d4,Bd4b5][%mdl 32]} Nc6 {[%emt 0:02:30]} 3. d4 {[%emt 0:00:43]} cxd4 {[%emt 0:00:18]} 4. Nxd4 {[%emt 0:00:07]} e5 {[%emt 0:00:48]} 5. Nb5 {[%emt 0:00:30]} d6 {[%emt 0:00:31]} 6. c4 {[%emt 0:00:12]} Nf6 {[%emt 0:01:06]} 7. N1c3 {[%emt 0:00:33]} a6 {[%emt 0:00:26]} 8. Na3 {[%emt 0:00:06]} Be7 {[%emt 0:10:50]} 9. Be2 {[%emt 0:01:44]} Nd4 {[%emt 0:06:26]} 10. Nc2 {[%emt 0:03:12]} Nxc2+ {[%emt 0:05:52]} 11. Qxc2 {[%emt 0:00:16]} O-O {[%emt 0:22:48]} 12. O-O {[%emt 0:03:27]} Be6 {[%emt 0:01:34] [#]} 13. Nd5 $146 {[%emt 0:12:12] B32: Sicilian: Löwenthal and Kalashnikov Variations.} (13. a4 $16) ({Predecessor:} 13. Qd3 Rc8 14. b3 Ne8 15. Nd5 Nf6 16. Nxe7+ Qxe7 17. a4 Nd7 18. a5 Nc5 19. Qe3 Qh4 20. Ba3 Qf4 21. Qxf4 exf4 {½-½ Van Foreest,L (2506)-Ikonnikov,V (2551) NED-chT 1819 2018 (8.2)}) 13... Rc8 {[%emt 0:05:07]} 14. Qd3 {[%emt 0:02:13]} Nd7 {[%emt 0:08:15]} 15. Be3 {[%emt 0:04:56] White is slightly better.} Bg5 {[%emt 0:00:49]} 16. Rfd1 {[%emt 0:07:27]} Bxd5 {[%emt 0:07:02]} 17. Bxg5 {[%emt 0:05:33]} Qxg5 {[%emt 0:00:17]} 18. Qxd5 {[%emt 0:00:07]} Rc6 {[%emt 0:03:49]} 19. Qd2 {[%emt 0:02:55]} Qg6 {[%emt 0:03:01]} (19... Qxd2 $11 20. Rxd2 Nc5) 20. Qe3 {[%emt 0:02:24]} Nc5 {[%emt 0:01:49][%cal Bd7c5,Bc5e6,Be6d4][%mdl 32]} 21. b3 {[%emt 0:22:09]} (21. b4 $5 {[%cal Rb4c5]} Ne6 22. b5 $11) 21... Ne6 {[%emt 0:06:16]} 22. Qa7 {[%emt 0:00:39]} Nd4 $1 {[%emt 0:02:31]} (22... Qxe4 $2 23. Bf3 (23. Qxb7 $2 {is the wrong capture.} Nd8 $19) 23... Qc2 24. Bxc6 (24. Qxb7 Rcc8 $16) 24... bxc6 25. Rxd6 $18 (25. Qxa6 Nd4 $16)) 23. Rxd4 {[%emt 0:00:14]} exd4 {[%emt 0:00:09]} 24. Qxb7 {[%emt 0:00:51]} Rc5 {[%emt 0:03:32]} (24... Qxe4 $2 25. Bf3 Qc2 26. Qxc6 $18) 25. Rd1 {[%emt 0:03:46]} Re5 {[%emt 0:01:22]} (25... f5 $5 {[%cal Rf5e4]} 26. Bd3 fxe4 27. Qxe4 Qxe4 28. Bxe4 Ra5 $11) 26. Rxd4 {[%emt 0:01:38][%cal Ob7c6]} f5 {[%emt 0:01:15][%cal Bf7f5,Bf5e4][%mdl 32]} 27. f3 {[%emt 0:05:48]} (27. Qxa6 $11 {remains equal.} fxe4 28. Rxd6) 27... Qg5 {[%emt 0:00:23] [#] ...Qe3+ would be deadly.} 28. Rxd6 $2 {[%emt 0:02:31][%mdl 8192]} (28. Kf1 $17) 28... Qe3+ $2 {[%emt 0:00:29]} (28... fxe4 29. Rd7 exf3 30. Rxg7+ Qxg7 31. Qxg7+ Kxg7 32. Bxf3 Rb8) 29. Kf1 $19 {[%emt 0:00:10]} fxe4 {[%emt 0:00:07]} 30. Rd7 $2 {[%emt 0:00:41]} (30. Qb6 {is the only way for White.} Qc1+ 31. Rd1) 30... Rg5 $2 {[%emt 0:01:21]} (30... Qg5 $19 {Hoping for ...exf3.} 31. Rd5 Qc1+ 32. Rd1 Qc2) 31. h4 $2 {[%emt 0:01:38][%mdl 8192] [#]} (31. Qa7 $17 Qc1+ 32. Rd1) 31... Rxg2 $3 {[%emt 0:00:43][%mdl 576] Double Attack. An interesting game.   Weighted Error Value: White=0.85/Black=0.68} 0-1

[Event "SixDays Budapest May IM 2023"]
[Site "Budapest"]
[Date "2023.05.27"]
[Round "1.5"]
[White "Dudognon, Thibault"]
[Black "Szeberenyi, Adam"]
[Result "1-0"]
[Annotator "TA"]
[ECO "B12"]
[WhiteElo "2325"]
[BlackElo "2338"]
[PlyCount "97"]
[EventDate "2023.05.25"]
[EventType "tourn"]
[EventCountry "HUN"]
[SourceTitle "playchess.com"]
[Source "ChessBase"]
[SourceQuality "1"]
[TimeControl "5400+30"]

{[%evp 9,97,20,15,19,19,9,28,28,38,0,41,35,56,33,54,60,56,29,22,1,82,57,71,66,165,145,143,160,139,138,130,136,185,188,195,177,200,0,0,0,133,137,109,44,264,258,277,256,266,251,307,311,300,332,317,317,354,338,370,366,320,316,462,443,453,394,418,400,416,402,793,755,988,905,2016,1847,29965,29941,29958,1006,29955,10294,29972,29974,29968,29974,29980,29981,29966,29966]} 1. e4 {[%emt 0:00:35][%cal Be2e4,Be4e5][%mdl 32]} c6 {[%emt 0:00:32]} 2. d4 {[%emt 0:00:19]} d5 {[%emt 0:00:05]} 3. e5 {[%emt 0:00:04]} c5 {[%emt 0:00:02]} 4. c4 {[%emt 0:00:03]} Nc6 {[%emt 0:02:40]} 5. Nf3 {[%emt 0:00:22]} cxd4 {[%emt 0:09:03]} 6. Nxd4 {[%emt 0:00:06] B12: Caro-Kann: Advance Variation.} e6 {[%emt 0:00:05]} 7. Nc3 {[%emt 0:00:19] next cxd5 is good for White.} Bc5 {[%emt 0:03:35]} 8. Nxc6 {[%emt 0:00:13] White has an edge.} bxc6 {[%emt 0:00:05]} 9. Qg4 {[%emt 0:00:15]} Kf8 {[%emt 0:05:35]} 10. Bd3 $40 {[%emt 0:12:01][%mdl 128] White is up to no good.} h5 {[%emt 0:12:42] [#]} 11. Qe2 $146 {[%emt 0:00:48]} ({Predecessor:} 11. Qf3 Bd4 12. Bg6 Qc7 13. Be3 Bxe3 14. fxe3 Rh6 15. Bxh5 g6 16. Bg4 Qxe5 17. Qf4 Qxf4 18. exf4 {1-0 Steiner,A (2266)-Mesaros,F (2393) AUT-chT 1516 2015 (4.1)}) 11... Qh4 {[%emt 0:01:27]} 12. h3 {[%emt 0:23:20]} Rb8 {[%emt 0:12:18]} 13. g3 {[%emt 0:01:12]} (13. O-O $5 {[%cal Rc3a4]}) 13... Qd8 {[%emt 0:00:37]} 14. O-O {[%emt 0:02:32]} Qc7 {[%emt 0:04:10]} (14... Bd4 $11 {remains equal.}) 15. Bf4 {[%emt 0:03:31][%cal Bc1f4,Bf4g5,Bg5f6][%mdl 32]} Ne7 {[%emt 0:03:20]} 16. cxd5 {[%emt 0:03:41]} exd5 {[%emt 0:04:37]} (16... Nxd5 $14 17. Nxd5 cxd5) 17. Na4 $1 $18 {[%emt 0:03:46]} (17. e6 Bd6 18. Bxd6 Qxd6 $17) 17... g5 {[%emt 0:01:57]} 18. Bxg5 {[%emt 0:02:25]} Bd4 {[%emt 0:00:21]} 19. Bf6 {[%emt 0:01:26]} Rh6 {[%emt 0:11:41][%cal Bh8h6,Bh6e6,Be6b6][%mdl 32] [#]} 20. Kg2 $1 {[%emt 0:01:26]} Ng8 {[%emt 0:03:29]} (20... c5 $16) 21. Bg5 {[%emt 0:01:25]} Re6 {[%emt 0:01:38]} 22. f4 {[%emt 0:01:34][%cal Oa1d1] Strongly threatening Rad1!} c5 {[%emt 0:04:53]} 23. Nc3 $2 {[%emt 0:06:54]} (23. Qxh5 $6 Qa5 $14) ({Better is} 23. Rac1 $18) 23... Reb6 $11 {[%emt 0:03:06]} 24. Rab1 {[%emt 0:04:09]} (24. Nxd5 $2 Qd7 25. f5 Rxb2 $19) 24... Qb7 {[%emt 0:02:25]} (24... c4 $11 {keeps the balance.} 25. Bh7 Qd7) 25. Nd1 {[%emt 0:04:34] White is more active.} c4 {[%emt 0:00:14] [#]} 26. Bh7 {[%emt 0:00:17]} (26. Bc2 $1 $16) 26... c3 $2 {[%emt 0:06:04] Loses the game.} ({Black should play} 26... f5 $1 $14 27. Bxg8 (27. Qxh5 Qf7 $14) 27... Kxg8) 27. bxc3 $18 {[%emt 0:02:59]} (27. Qxh5 $6 cxb2 28. Nf2 f6 $16) (27. Nxc3 $2 Rxb2 28. Rxb2 Qxb2 $19) 27... Rxb1 {[%emt 0:00:21]} 28. Bxb1 {[%emt 0:00:04]} Qxb1 {[%emt 0:00:43]} 29. cxd4 {[%emt 0:00:41]} Bf5 {[%emt 0:01:19]} 30. Nf2 {[%emt 0:02:40] Wards off Bd3} (30. Qxh5 Qd3 31. Re1 (31. Nf2 $2 Rb2 $19) 31... Be4+ 32. Rxe4 dxe4 $11) 30... Qb2 {[%emt 0:01:19]} 31. Qxb2 {[%emt 0:08:47]} ({Don't play} 31. Qxh5 Bd3 32. Re1 Be4+ 33. Kf1 Qxa2) 31... Rxb2 {[%emt 0:00:04]} 32. Kf3 {[%emt 0:00:24]} Rxa2 {[%emt 0:00:47]} 33. g4 {[%emt 0:00:04]} hxg4+ {[%emt 0:00:30]} 34. hxg4 {[%emt 0:00:05]} Ra3+ {[%emt 0:00:58]} 35. Kg2 {[%emt 0:00:08]} Bd3 {[%emt 0:00:17]} (35... Bc2 $142 36. f5 f6) 36. Rc1 {[%emt 0:00:38]} Bc4 {[%emt 0:00:33]} 37. Rb1 {[%emt 0:01:22]} Rb3 {[%emt 0:00:17] Wards off Rb8+} 38. Ra1 {[%emt 0:00:56]} a6 {[%emt 0:00:05]} 39. f5 {[%emt 0:00:50][%cal Bf4f5,Bf5f6][%mdl 32]} Ne7 {[%emt 0:00:26]} (39... Kg7 $142 40. Rh1 Be2) 40. Rh1 {[%emt 0:00:14] Hoping for Rh8+.} Ng8 {[%emt 0:01:52]} 41. f6 {[%emt 0:01:05]} a5 {[%emt 0:01:04]} 42. Rh8 {[%emt 0:00:11]} a4 {[%emt 0:00:04]} 43. Bh6+ {[%emt 0:00:23][%mdl 64] Deflection} Ke8 {[%emt 0:00:03]} 44. Rxg8+ {[%emt 0:00:05]} Kd7 {[%emt 0:00:01]} 45. Rf8 {[%emt 0:00:38]} a3 {[%emt 0:01:20]} 46. Rxf7+ {[%emt 0:00:05] White mates.} Kc6 {[%emt 0:00:06]} 47. Ra7 {[%emt 0:01:19]} Kb6 {[%emt 0:00:05] [#]} 48. Rxa3 $3 {[%emt 0:01:10]} Rxa3 {[%emt 0:00:07]} 49. f7 {[%emt 0:00:03] Weighted Error Value: White=0.15 (very precise) /Black=0.54} 1-0

[Event "SixDays Budapest May IM 2023"]
[Site "Budapest"]
[Date "2023.05.28"]
[Round "2.1"]
[White "Szeberenyi, Adam"]
[Black "Nemeth, Zalan"]
[Result "1-0"]
[Annotator "TA"]
[ECO "A32"]
[WhiteElo "2338"]
[BlackElo "2289"]
[PlyCount "39"]
[EventDate "2023.05.25"]
[EventType "tourn"]
[EventCountry "HUN"]
[SourceTitle "playchess.com"]
[Source "ChessBase"]
[SourceQuality "1"]
[TimeControl "5400+30"]

{[%evp 12,39,-8,-3,68,64,71,69,64,52,137,140,146,145,187,158,185,153,141,166,303,311,275,140,480,477,589,577,920,913]} 1. d4 {[%emt 0:03:27]} Nf6 {[%emt 0:01:16]} 2. c4 {[%emt 0:00:34]} c5 {[%emt 0:00:04]} 3. Nf3 {[%emt 0:01:30][%cal Bg1f3,Bf3d4,Bd4b5,Bb5d6][%mdl 32]} cxd4 {[%emt 0:00:07]} 4. Nxd4 {[%emt 0:00:03]} e6 {[%emt 0:00:05]} 5. Nc3 {[%emt 0:00:05]} Bb4 {[%emt 0:00:05]} 6. Ndb5 {[%emt 0:05:51]} d5 {[%emt 0:11:44]} 7. cxd5 {[%emt 0:02:33]} Nxd5 {[%emt 0:12:14] A32: Symmetrical English: 2 Nf3 Nf6 3 d4 cxd4 4 Nxd4 e6.} (7... exd5 $11 8. Bg5 O-O) 8. e4 $14 {[%emt 0:02:57]} Nxc3 {[%emt 0:03:41]} 9. bxc3 {[%emt 0:01:12]} Bc5 {[%emt 0:10:13] White is slightly better.} 10. Bf4 $1 {[%emt 0:13:37]} Na6 {[%emt 0:05:50] [#] Prevents Nc7+} ({Black should play} 10... Qxd1+ $1 $14 11. Rxd1 Na6) 11. Nd6+ $1 $16 {[%emt 0:01:05] [#]} Bxd6 $146 {[%emt 0:01:36]} ({Predecessor:} 11... Ke7 12. Nc4 Qxd1+ 13. Rxd1 Nb8 14. Be2 Nc6 15. O-O f6 16. e5 b5 17. Bf3 bxc4 18. Bxc6 Ba6 19. Rd7+ Ke8 20. Rxa7+ {1-0 Beydullayeva,G (2307)-Duson,R (2032) EU-ch U18 Girls 2019 (7)}) 12. Bxd6 {[%emt 0:00:17]} ({Don't play} 12. Qxd6 Qxd6 13. Bxd6 Bd7 $16) 12... Qa5 {[%emt 0:00:11] Black is weak on the dark squares} 13. Qd4 {[%emt 0:03:00]} f6 {[%emt 0:01:09]} 14. Rb1 {[%emt 0:04:08] Hoping for e5.} Kf7 {[%emt 0:04:48]} 15. Bc4 {[%emt 0:08:20] 0-0 would be deadly. White has more active pieces. The black rooks are badly placed. This pair of bishops is nice.} Re8 {[%emt 0:00:32]} (15... Nc7 $142 16. O-O Rd8) 16. O-O $18 {[%emt 0:05:50] e5 is the strong threat.} Kg8 {[%emt 0:01:00]} 17. Rfd1 {[%emt 0:00:23]} (17. e5 $18) 17... Bd7 {[%emt 0:03:02][%mdl 8192] [#] Inhibits Bb5.} (17... Nb8 $16 18. Qe3 (18. Rb5 Qd8 $16) 18... Nc6) 18. Bb4 {[%emt 0:06:02] White is clearly winning.} ({Weaker is} 18. Rxb7 Bc6 $18) 18... Nxb4 {[%emt 0:00:13]} 19. Qxd7 {[%emt 0:02:28]} Nc6 {[%emt 0:01:28]} 20. Rxb7 {[%emt 0:00:29] Weighted Error Value: White=0.14 (very precise) /Black=0.67} 1-0

[Event "SixDays Budapest May IM 2023"]
[Site "Budapest"]
[Date "2023.05.28"]
[Round "2.2"]
[White "Horvath, David"]
[Black "Tancsa, Tamas"]
[Result "1/2-1/2"]
[Annotator "TA"]
[ECO "A46"]
[WhiteElo "2362"]
[BlackElo "2188"]
[PlyCount "37"]
[EventDate "2023.05.25"]
[EventType "tourn"]
[EventCountry "HUN"]
[SourceTitle "playchess.com"]
[Source "ChessBase"]
[SourceQuality "1"]
[TimeControl "5400+30"]

{[%evp 9,37,0,10,6,3,6,16,20,49,49,113,59,47,18,27,17,14,0,20,31,21,11,25,10,12,20,0,0,0,-35]} 1. d4 {[%emt 0:02:45]} Nf6 {[%emt 0:00:35]} 2. Nf3 {[%emt 0:00:04]} e6 {[%emt 0:00:06]} 3. Bf4 {[%emt 0:06:30]} b6 {[%emt 0:00:51]} 4. e3 {[%emt 0:00:08]} Bb7 {[%emt 0:00:09]} 5. Bd3 {[%emt 0:00:58]} c5 {[%emt 0:07:03]} 6. h3 {[%emt 0:03:03] A47: 1 d4 Nf6 2 Nf3 b6: Torre, London and Colle Systems.} Nc6 {[%emt 0:01:29]} 7. c3 {[%emt 0:00:29]} d6 {[%emt 0:00:24]} 8. O-O {[%emt 0:04:47] [#]} Qe7 $146 {[%emt 0:04:37]} ({Predecessor:} 8... Be7 9. Nbd2 O-O 10. Qc2 Rc8 11. Qa4 a6 12. Rac1 b5 13. Qd1 h6 14. Be2 Re8 15. c4 bxc4 16. Nxc4 cxd4 17. Nxd4 Na5 {0-1 Kopterou,E-Makropoulou,M (2217) GRE-chT 42nd 2014 (7.5)}) 9. e4 {[%emt 0:19:55]} e5 {[%emt 0:04:22]} (9... Qd8 $14) 10. dxe5 {[%emt 0:09:53]} ({White should play} 10. Be3 $16) 10... dxe5 $14 {[%emt 0:00:24]} 11. Be3 {[%emt 0:06:55]} (11. Bh2 $5 {[%cal Rd3b5]}) 11... Qc7 {[%emt 0:02:46]} 12. Nbd2 {[%emt 0:02:30]} Be7 {[%emt 0:01:01]} 13. Qe2 {[%emt 0:00:08]} a6 {[%emt 0:00:49]} (13... O-O $5) 14. a4 {[%emt 0:00:07]} O-O {[%emt 0:00:21]} 15. Rac1 {[%emt 0:08:09]} Rfd8 {[%emt 0:02:38]} 16. Rfd1 {[%emt 0:01:29]} Rd7 {[%emt 0:03:35] The position is equal.} 17. Nf1 {[%emt 0:03:42]} Na5 {[%emt 0:10:22][%cal Od7d3]} 18. N3d2 {[%emt 0:05:27]} Rad8 {[%emt 0:04:58]} 19. Bxa6 {[%emt 0:02:46] Weighted Error Value: White=0.10 (very precise) /Black=0.11 (very precise)} 1/2-1/2

[Event "SixDays Budapest May IM 2023"]
[Site "Budapest"]
[Date "2023.05.28"]
[Round "2.3"]
[White "Manu David Suthandram R"]
[Black "Semprun Martinez, Fernando"]
[Result "0-1"]
[Annotator "TA"]
[ECO "C50"]
[WhiteElo "2332"]
[BlackElo "2125"]
[PlyCount "58"]
[EventDate "2023.05.25"]
[EventType "tourn"]
[EventCountry "HUN"]
[SourceTitle "playchess.com"]
[Source "ChessBase"]
[SourceQuality "1"]
[TimeControl "5400+30"]

{[%evp 17,58,-51,-38,-47,-47,-48,-39,-44,-42,-45,-47,-41,-16,-72,-26,-161,-175,-226,-227,-263,-283,-302,-284,-288,-167,-323,-264,-331,-287,-263,-214,-330,-354,-354,-325,-698,-700,-795,-789,-5565,-5485,-1586,-1012]} 1. e4 {[%emt 0:18:27]} e5 {[%emt 0:00:33]} 2. Nf3 {[%emt 0:00:10]} Nc6 {[%emt 0:00:01]} 3. Bc4 {[%emt 0:00:12]} Bc5 {[%emt 0:00:04]} 4. O-O {[%emt 0:00:10]} Nf6 {[%emt 0:00:02]} 5. d4 {[%emt 0:00:09]} Bxd4 {[%emt 0:00:19]} 6. Nxd4 {[%emt 0:00:08]} Nxd4 {[%emt 0:00:03]} 7. f4 {[%emt 0:00:11]} d6 {[%emt 0:00:02]} 8. fxe5 {[%emt 0:00:08]} dxe5 {[%emt 0:00:02]} 9. Bg5 {[%emt 0:00:10]} Qe7 {[%emt 0:00:36] [#] aiming for ...Qc5.} 10. Na3 {[%emt 0:00:38] C50: Hungarian Defence and Giuoco Pianissimo.} Rg8 {[%emt 0:00:02]} 11. Kh1 {[%emt 0:09:12]} Bd7 {[%emt 0:00:02] Prevents Nb5} 12. Qd2 {[%emt 0:08:23] Black is slightly better.} O-O-O {[%emt 0:00:02]} (12... Nxe4 $2 13. Bxf7+ Qxf7 14. Rxf7 Kxf7 15. Rf1+ Kg6 16. Qd3 $18) 13. Qf2 {[%emt 0:07:14]} Be6 {[%emt 0:00:02] [#]} 14. Bxe6+ $146 {[%emt 0:12:58]} ({Predecessor:} 14. Rae1 a6 15. c3 Nc6 16. Qe2 Kb8 17. Rf2 Rd6 18. Bxe6 Rxe6 19. Ref1 h6 20. Bxf6 Rxf6 21. Rxf6 gxf6 {½-½ Oren,I (2229)-Cavajda,I (2470) EU-chT11 sf2 email 2017 [5]}) 14... Qxe6 {[%emt 0:04:27]} 15. Qh4 {[%emt 0:15:34] White is weak on the light squares} (15. Bxf6 $11 gxf6 16. Qxf6) 15... Rd7 {[%emt 0:07:34] Black is more active.} (15... Rd6 $17) 16. h3 {[%emt 0:09:40] [#] Repels Ng4. White does not recover from this.} (16. Bxf6 $11 {and White is okay.} gxf6 17. Rxf6) 16... Ne8 $1 $19 {[%emt 0:05:27]} 17. c3 {[%emt 0:03:53]} (17. Rae1 $142) 17... Nc6 {[%emt 0:05:14]} 18. Qxh7 {[%emt 0:00:59]} f6 {[%emt 0:00:52]} 19. Be3 {[%emt 0:00:06]} g6 {[%emt 0:04:13] Inhibits Qf5.} 20. Qh4 {[%emt 0:03:23]} g5 {[%emt 0:01:36]} (20... f5 $142 {Strongly threatening ...f4.} 21. Bg5 Nd6) 21. Qh6 $2 {[%emt 0:02:10]} (21. Qg4 {was the only chance.} Qxg4 22. hxg4) 21... g4 {[%emt 0:09:01] And now ...Rgg7 would win.} 22. Rad1 {[%emt 0:03:56]} Rxd1 {[%emt 0:09:32]} 23. Rxd1 {[%emt 0:00:07]} gxh3 {[%emt 0:01:03]} ({Worse is} 23... Qxa2 24. Qh7 Qe6 25. Nc4 $19) 24. gxh3 {[%emt 0:01:27]} (24. Qxh3 $142 Qxh3+ 25. gxh3) 24... Nd6 {[%emt 0:01:49][%cal Be8d6,Bd6e4,Be4g3][%mdl 32] White must now prevent ...Nf7.} (24... Qxa2 $2 {perishes.} 25. Qh7 Rg7 26. Qh5 $19) 25. Kh2 {[%emt 0:01:26]} Nxe4 {[%emt 0:09:58]} 26. Nb5 $2 {[%emt 0:00:17]} (26. Qh7 f5 27. Rd7 Qxd7 28. Qxg8+ Nd8 29. Bg5 Nxg5 30. Qxg5) 26... Qc4 {[%emt 0:02:24] ( -> ...Qe2+). Black is clearly winning.} (26... Qxa2 $2 27. Qh7 $18) 27. Qh5 {[%emt 0:00:37] Wards off Qe2+} Qxb5 {[%emt 0:04:01]} 28. Rg1 {[%emt 0:01:11]} Qxb2+ {[%emt 0:02:12]} 29. Kh1 {[%emt 0:00:27]} Ng3+ {[%emt 0:04:31] Weighted Error Value: White=0.85/Black=0.17 (very precise)} 0-1